bitfinex-derivatives/quotes_BTCF0:USTF0_20241218
["timestamp","ask_amount","ask_price","bid_price","bid_amount"]
[1734546385566,0.0617,104750.0,104730.0,0.408544]
[1734546385763,0.0617,104750.0,104740.0,0.047739]
[1734546385969,0.4225,104750.0,104740.0,0.047739]
[1734546389066,0.4325,104750.0,104720.0,0.268844]
[1734546389364,0.408544,104730.0,104710.0,0.047749]
[1734546389554,0.539249,104720.0,104710.0,0.047749]
[1734546390564,0.56316338,104720.0,104710.0,0.047749]
[1734546390962,0.20236338,104720.0,104710.0,0.047749]
[1734546391162,0.56316338,104720.0,104710.0,0.047749]
[1734546391363,0.13686338,104720.0,104710.0,0.047749]
[1734546392269,0.0652,104720.0,104710.0,0.047749]
[1734546392570,0.57444223,104730.0,104720.0,0.047748]
[1734546392769,0.27874223,104730.0,104720.0,0.047748]
[1734546393758,0.63954223,104730.0,104720.0,0.047748]
[1734546393970,0.27874223,104730.0,104720.0,0.047748]
[1734546394255,0.4259,104730.0,104720.0,0.047748]
[1734546394469,0.0651,104730.0,104720.0,0.047748]
[1734546394671,0.13676338,104730.0,104720.0,0.047748]
[1734546395575,0.20707885,104730.0,104720.0,0.047748]
[1734546395766,0.20707885,104730.0,104720.0,0.113748]
[1734546396269,0.56787885,104730.0,104720.0,0.113748]
[1734546396974,0.4259,104730.0,104720.0,0.113748]
[1734546397268,0.49756338,104730.0,104720.0,0.113748]
[1734546397469,0.61697076,104730.0,104720.0,0.047748]
[1734546397671,0.54530738,104730.0,104720.0,0.047748]
[1734546397973,0.68728623,104730.0,104720.0,0.047748]
[1734546399265,0.71560378,104730.0,104720.0,0.047748]
[1734546400572,0.2353964,104730.0,104720.0,0.047748]
[1734546400964,0.5961964,104730.0,104720.0,0.047748]
[1734546401273,0.37797688,104730.0,104720.0,0.047748]
[1734546402569,0.85818426,104730.0,104720.0,0.047748]
[1734546402873,0.68788786,104730.0,104720.0,0.047748]
[1734546403070,0.70741864,104730.0,104720.0,0.047748]
[1734546404279,0.87771504,104730.0,104720.0,0.047748]
[1734546405772,0.73513456,104730.0,104720.0,0.047748]
[1734546408577,0.70756266,104730.0,104720.0,0.047748]
[1734546408981,0.047748,104720.0,104710.0,0.048251]
[1734546409167,0.48021138,104720.0,104710.0,0.048251]
[1734546409369,0.54271138,104720.0,104710.0,0.048251]
[1734546409774,0.54271138,104720.0,104710.0,0.047751]
[1734546410079,0.2032245,104720.0,104710.0,0.047751]
[1734546410381,0.1427245,104720.0,104710.0,0.047751]
[1734546410876,0.1427245,104720.0,104710.0,0.048251]
[1734546411380,0.73513456,104730.0,104710.0,0.048251]
[1734546411381,0.70756266,104730.0,104720.0,0.047748]
[1734546414880,0.87785906,104730.0,104720.0,0.047748]
[1734546417282,0.70756266,104730.0,104720.0,0.047748]
[1734546417474,0.22735528,104730.0,104720.0,0.047748]
[1734546417871,0.22735528,104730.0,104720.0,0.108848]
[1734546418281,0.22735528,104730.0,104720.0,0.469648]
[1734546418480,0.22735528,104730.0,104720.0,0.108848]
[1734546418778,0.22735528,104730.0,104720.0,0.469648]
[1734546419666,0.22735528,104730.0,104720.0,0.69689421]
[1734546419667,0.1990252,104730.0,104720.0,0.69689421]
[1734546421481,0.1990252,104730.0,104720.0,1.14761068]
[1734546422386,0.1990252,104730.0,104720.0,0.69689421]
[1734546424687,0.1990252,104730.0,104720.0,0.98095197]
[1734546425389,0.17949442,104730.0,104720.0,0.98095197]
[1734546425683,0.11439442,104730.0,104720.0,1.05261535]
[1734546425879,0.11439442,104730.0,104720.0,1.58209894]
[1734546427380,0.0005,104740.0,104720.0,1.41166428]
[1734546427573,0.0005,104740.0,104730.0,0.70130738]
[1734546427773,0.15272492,104750.0,104730.0,0.76420738]
[1734546427982,0.15272492,104750.0,104740.0,0.408539]
[1734546428378,0.15272492,104750.0,104740.0,0.047739]
[1734546428579,0.15272492,104750.0,104740.0,0.111339]
[1734546428982,0.01,104750.0,104740.0,0.87078856]
[1734546429888,0.01,104750.0,104740.0,0.50998856]
[1734546430083,0.01,104750.0,104740.0,0.64298881]
[1734546431586,0.01,104750.0,104740.0,0.71465219]
[1734546431788,0.01,104750.0,104740.0,0.77425219]
[1734546431973,0.0105,104750.0,104740.0,0.77425219]
[1734546432886,0.01,104750.0,104740.0,0.77425219]
[1734546433679,0.01,104750.0,104740.0,1.00205194]
[1734546433880,0.0105,104750.0,104740.0,1.00205194]
[1734546434390,0.0105,104750.0,104740.0,0.94002795]
[1734546434984,0.01,104750.0,104740.0,0.94002795]
[1734546435982,0.0105,104750.0,104740.0,0.94002795]
[1734546436182,0.0105,104750.0,104740.0,0.7122282]
[1734546436385,0.0105,104750.0,104740.0,0.9333282]
[1734546436891,0.01,104750.0,104740.0,0.9333282]
[1734546437100,0.08166338,104750.0,104740.0,0.80048881]
[1734546437884,0.08216338,104750.0,104740.0,0.43968881]
[1734546438084,0.0105,104750.0,104740.0,0.43968881]
[1734546438492,0.0105,104750.0,104740.0,0.629639]
[1734546438692,0.0105,104750.0,104740.0,0.268839]
[1734546438901,0.01,104750.0,104740.0,0.268839]
[1734546439193,0.49019838,104750.0,104740.0,0.268839]
[1734546439387,0.44246338,104750.0,104740.0,0.047739]
[1734546439596,0.01,104750.0,104740.0,0.047739]
[1734546439894,0.0105,104750.0,104740.0,0.047739]
[1734546442691,0.01973465,104750.0,104740.0,0.047739]
[1734546444102,0.49993303,104750.0,104740.0,0.047739]
[1734546444397,0.51349803,104750.0,104740.0,0.047739]
[1734546445495,0.70395753,104750.0,104740.0,0.047739]
[1734546445906,0.70345753,104750.0,104740.0,0.047739]
[1734546447690,0.87375393,104750.0,104740.0,0.047739]
[1734546449493,0.87375393,104750.0,104730.0,0.26633781]
[1734546449494,0.047739,104740.0,104730.0,0.17084981]
[1734546449702,0.60690238,104740.0,104730.0,0.17084981]
[1734546449884,0.60690238,104740.0,104730.0,0.21859381]
[1734546450088,0.60690238,104740.0,104730.0,0.047744]
[1734546451297,0.77719878,104740.0,104730.0,0.047744]
[1734546454191,0.047744,104730.0,104720.0,0.0005]
[1734546454498,0.61677076,104730.0,104720.0,0.048248]
[1734546454897,0.61677076,104730.0,104720.0,0.047748]
[1734546455198,0.75956592,104730.0,104720.0,0.047748]
[1734546455998,0.75956592,104730.0,104720.0,0.048248]
[1734546456796,0.50359516,104730.0,104720.0,0.048248]
[1734546457002,0.57525854,104730.0,104720.0,0.047748]
[1734546457503,0.43246338,104730.0,104720.0,0.047748]
[1734546457897,0.43246338,104730.0,104720.0,0.048248]
[1734546459101,0.43246338,104730.0,104720.0,0.047748]
[1734546459300,0.3608,104730.0,104720.0,0.047748]
[1734546459897,1.05527855,104740.0,104730.0,0.047744]
[1734546460100,1.05475854,104740.0,104730.0,0.047744]
[1734546460293,0.91889516,104740.0,104730.0,0.047744]
[1734546460696,0.92832334,104740.0,104730.0,0.047744]
[1734546460896,1.04772572,104740.0,104730.0,0.047744]
[1734546461096,1.10862572,104740.0,104730.0,0.047744]
[1734546461798,0.96583056,104740.0,104730.0,0.047744]
[1734546462405,0.98532518,104740.0,104730.0,0.047744]
[1734546463005,0.77532034,104740.0,104730.0,0.047744]
[1734546466198,0.89472272,104740.0,104720.0,0.0005]
[1734546466401,0.61937076,104730.0,104720.0,0.0005]
[1734546467116,0.66711876,104730.0,104720.0,0.17084981]
[1734546467903,0.66711876,104730.0,104720.0,0.17134981]
[1734546468103,0.98021032,104730.0,104720.0,0.0005]
[1734546470009,0.047753,104710.0,104700.0,0.50899811]
[1734546470209,0.11941638,104710.0,104700.0,0.50899811]
[1734546472009,0.047753,104710.0,104700.0,0.50899811]
[1734546473509,0.55187976,104710.0,104700.0,0.39874411]
[1734546473807,0.61747976,104710.0,104700.0,0.39874411]
[1734546474406,0.76027492,104710.0,104700.0,0.17094436]
[1734546475512,0.76027492,104710.0,104700.0,9.455e-05]
[1734546475513,0.71611278,104710.0,104700.0,9.455e-05]
[1734546475713,0.78777616,104710.0,104700.0,9.455e-05]
[1734546475913,0.71611278,104710.0,104700.0,9.455e-05]
[1734546476309,0.79735247,104710.0,104700.0,9.455e-05]
[1734546476504,0.047762,104690.0,104680.0,0.17084981]
[1734546476718,0.84102538,104690.0,104680.0,0.17084981]
[1734546477208,0.90592538,104690.0,104680.0,0.17084981]
[1734546477610,0.90601224,104690.0,104680.0,0.17084981]
[1734546477815,0.90601224,104690.0,104680.0,0.21861681]
[1734546478116,1.04879659,104690.0,104680.0,0.047767]
[1734546479118,0.99161597,104690.0,104680.0,0.047767]
[1734546479308,0.99161597,104690.0,104680.0,0.048767]
[1734546480019,1.0012361,104690.0,104680.0,0.047767]
[1734546482011,0.9534741,104690.0,104680.0,0.047767]
[1734546482209,0.20511597,104690.0,104680.0,0.047767]
[1734546482809,0.11951224,104690.0,104680.0,0.047767]
[1734546483309,0.48031224,104690.0,104680.0,0.047767]
[1734546483504,0.047767,104680.0,104670.0,0.21861981]
[1734546483704,0.11943038,104680.0,104670.0,0.21861981]
[1734546484514,0.07166338,104680.0,104670.0,0.21861981]
[1734546484814,0.56591897,104690.0,104670.0,0.21861681]
[1734546485022,0.56591897,104690.0,104680.0,0.0005]
[1734546487809,0.62901897,104690.0,104680.0,0.0005]
[1734546488818,0.74300297,104690.0,104680.0,0.0005]
[1734546489410,0.74300297,104690.0,104680.0,0.048267]
[1734546489905,0.74300297,104690.0,104680.0,0.0005]
[1734546490514,0.76202465,104690.0,104680.0,0.0005]
[1734546491117,0.21869627,104690.0,104680.0,0.769867]
[1734546491315,0.21869627,104690.0,104680.0,1.20293038]
[1734546491316,0.113984,104690.0,104680.0,1.20293038]
[1734546491521,0.14278435,104700.0,104690.0,0.047762]
[1734546491718,0.14278435,104700.0,104690.0,0.48022538]
[1734546492021,0.14278435,104700.0,104690.0,1.00132538]
[1734546492625,0.14278435,104700.0,104690.0,0.629662]
[1734546493010,0.14278435,104700.0,104690.0,0.694162]
[1734546493521,0.24195978,104710.0,104690.0,0.87171156]
[1734546493522,0.07166338,104710.0,104690.0,0.87171156]
[1734546493708,0.07166338,104710.0,104700.0,0.047757]
[1734546494019,0.48021638,104710.0,104700.0,0.047757]
[1734546494419,0.54661638,104710.0,104700.0,0.047757]
[1734546495518,0.047757,104700.0,104690.0,0.28311081]
[1734546495821,0.48022038,104700.0,104690.0,0.28311081]
[1734546496019,0.48022038,104700.0,104690.0,0.112261]
[1734546498116,0.43246338,104700.0,104690.0,0.112261]
[1734546498727,0.3608,104700.0,104690.0,0.112261]
[1734546499822,0.3608,104700.0,104690.0,0.28311081]
[1734546500213,0.07166338,104700.0,104690.0,0.21861081]
[1734546500410,0.13246338,104700.0,104690.0,0.21861081]
[1734546501423,0.49326338,104700.0,104690.0,0.21861081]
[1734546501816,0.13246338,104700.0,104690.0,0.21861081]
[1734546502217,0.14176152,104700.0,104690.0,0.21861081]
[1734546503029,0.20576152,104700.0,104690.0,0.21861081]
[1734546503218,0.56656152,104700.0,104690.0,0.21861081]
[1734546503825,0.20576152,104700.0,104690.0,0.21861081]
[1734546504226,0.13409814,104700.0,104690.0,0.21861081]
[1734546504424,0.13409814,104700.0,104690.0,0.57941081]
[1734546504819,0.07009814,104700.0,104690.0,0.21861081]
[1734546505227,0.43089814,104700.0,104690.0,0.21861081]
[1734546506330,0.55031852,104700.0,104690.0,0.21861081]
[1734546506530,0.55031852,104700.0,104690.0,0.44641056]
[1734546507533,0.50256152,104700.0,104690.0,0.44641056]
[1734546507831,0.50256152,104700.0,104690.0,0.047761]
[1734546508228,0.55031852,104700.0,104690.0,0.047761]
[1734546509133,0.55031852,104700.0,104690.0,0.21861081]
[1734546510434,0.69310287,104700.0,104690.0,0.047761]
[1734546512631,0.75390287,104700.0,104690.0,0.047761]
[1734546513530,0.65354372,104700.0,104690.0,0.047761]
[1734546513726,0.63448249,104700.0,104690.0,0.047761]
[1734546514628,0.51288249,104700.0,104690.0,0.047761]
[1734546514825,0.51288249,104700.0,104690.0,0.107861]
[1734546515334,0.37009814,104700.0,104690.0,0.27871081]
[1734546516636,0.37009814,104700.0,104690.0,0.50651056]
[1734546517038,0.37009814,104700.0,104690.0,0.56931056]
[1734546517825,0.3608,104700.0,104690.0,0.64097394]
[1734546518030,0.63704885,104710.0,104700.0,0.047757]
[1734546518637,0.64657771,104710.0,104700.0,0.047757]
[1734546518925,0.64607771,104710.0,104700.0,0.047757]
[1734546519932,0.64657771,104710.0,104700.0,0.047757]
[1734546520133,0.71824109,104710.0,104700.0,0.44640656]
[1734546520938,0.71774109,104710.0,104700.0,0.44640656]
[1734546521236,0.71774109,104710.0,104700.0,0.21860681]
[1734546521431,0.66998709,104710.0,104700.0,0.17084981]
[1734546521738,0.047757,104700.0,104690.0,0.51254944]
[1734546521945,0.55188376,104700.0,104690.0,0.51254944]
[1734546522643,0.55188376,104700.0,104680.0,0.60973331]
[1734546522644,0.047762,104690.0,104680.0,0.49666375]
[1734546522833,0.54382538,104690.0,104680.0,0.49666375]
[1734546523141,0.54382538,104690.0,104680.0,0.27606375]
[1734546523930,0.6869034,104690.0,104680.0,0.27606375]
[1734546524834,0.7484034,104690.0,104680.0,0.27606375]
[1734546525336,0.7484034,104690.0,104680.0,0.048264]
[1734546525337,0.9186998,104690.0,104680.0,0.048264]
[1734546525936,0.9186998,104690.0,104680.0,0.047764]
[1734546526441,0.9186998,104690.0,104680.0,0.034764]
[1734546528543,0.7484034,104690.0,104680.0,0.034764]
[1734546528743,0.7006414,104690.0,104680.0,0.034764]
[1734546528932,0.56747802,104690.0,104680.0,0.034764]
[1734546529446,0.56747802,104690.0,104680.0,0.093664]
[1734546530849,0.57701326,104690.0,104680.0,0.093664]
[1734546535743,0.59646085,104690.0,104680.0,0.093664]
[1734546537349,0.23566085,104690.0,104680.0,0.093664]
[1734546537648,0.59646085,104690.0,104680.0,0.093664]
[1734546538350,0.23566085,104690.0,104680.0,0.093664]
[1734546538750,0.59646085,104690.0,104680.0,0.32146375]
[1734546540057,0.45338283,104690.0,104680.0,0.32146375]
[1734546542746,0.57280821,104690.0,104680.0,0.26256375]
[1734546542946,0.63110821,104690.0,104680.0,0.26256375]
[1734546543348,0.72642423,104690.0,104680.0,0.26256375]
[1734546543654,0.77418623,104690.0,104680.0,0.26256375]
[1734546544655,0.80140461,104690.0,104680.0,0.034764]
[1734546546763,0.047767,104680.0,104670.0,0.047769]
[1734546546945,0.54233038,104680.0,104670.0,0.048269]
[1734546548054,0.85563219,104680.0,104670.0,0.047769]
[1734546549059,0.85563219,104680.0,104670.0,0.048269]
[1734546549253,0.67410181,104680.0,104670.0,0.048269]
[1734546549459,0.74576519,104680.0,104670.0,0.048269]
[1734546550053,0.74576519,104680.0,104670.0,0.047769]
[1734546550249,0.67410181,104680.0,104670.0,0.047769]
[1734546550657,0.50380541,104680.0,104670.0,0.047769]
[1734546551767,0.67410181,104680.0,104670.0,0.047769]
[1734546553466,0.74576519,104680.0,104670.0,0.047769]
[1734546553656,0.79353219,104680.0,104670.0,0.047769]
[1734546554768,0.047771,104670.0,104660.0,0.27557375]
[1734546554961,0.59803438,104670.0,104660.0,0.27557375]
[1734546555158,0.59803438,104670.0,104660.0,0.31311583]
[1734546555355,0.59803438,104670.0,104660.0,0.27607375]
[1734546556273,0.69326879,104670.0,104660.0,0.047774]
[1734546556857,0.74103979,104670.0,104660.0,0.047774]
[1734546557063,0.74103979,104670.0,104660.0,0.048274]
[1734546558063,0.74103979,104670.0,104660.0,0.047774]
[1734546558667,0.75054541,104670.0,104660.0,0.047774]
[1734546559173,0.75054541,104670.0,104660.0,0.048274]
[1734546560773,0.70277441,104670.0,104660.0,0.048274]
[1734546561775,0.57241103,104670.0,104660.0,0.048274]
[1734546561980,0.57241103,104670.0,104660.0,0.108374]
[1734546563074,0.64407441,104670.0,104660.0,0.108374]
[1734546563572,0.75843408,104670.0,104660.0,0.108374]
[1734546564282,0.6867707,104670.0,104660.0,0.108374]
[1734546565080,0.6867707,104670.0,104660.0,0.107874]
[1734546565282,0.57241103,104670.0,104660.0,0.107874]
[1734546565978,0.6194749,104670.0,104660.0,0.107874]
[1734546567482,0.6194749,104670.0,104660.0,0.047774]
[1734546567683,0.6765749,104670.0,104660.0,0.047774]
[1734546568378,0.69615017,104670.0,104660.0,0.047774]
[1734546569082,0.74392117,104670.0,104660.0,0.047774]
[1734546570176,0.63905017,104670.0,104660.0,0.09483787]
[1734546570382,0.2311863,104670.0,104660.0,0.15263787]
[1734546570782,0.14300541,104670.0,104660.0,0.21053787]
[1734546570976,0.14300541,104670.0,104660.0,0.24757995]
[1734546571680,0.1144056,104670.0,104660.0,0.4753797]
[1734546571875,0.52226947,104670.0,104660.0,0.42831583]
[1734546572089,0.5229766,104670.0,104660.0,0.37041583]
[1734546572296,0.62654047,104670.0,104660.0,0.33337375]
[1734546572797,0.65514028,104670.0,104660.0,0.105574]
[1734546574093,0.67979691,104670.0,104660.0,0.105574]
[1734546575295,0.85009331,104670.0,104660.0,0.105574]
[1734546576407,0.85009331,104670.0,104660.0,0.33337375]
[1734546578492,0.71663913,104670.0,104660.0,0.33337375]
[1734546579195,0.64491863,104670.0,104660.0,0.33337375]
[1734546579396,0.59714763,104670.0,104660.0,0.33337375]
[1734546579801,0.23634763,104670.0,104660.0,0.39347375]
[1734546580103,0.1702964,104670.0,104660.0,0.86303633]
[1734546581602,0.02120861,104670.0,104660.0,1.43189769]
[1734546583001,0.14363576,104680.0,104670.0,0.047771]
[1734546583002,0.0005,104680.0,104670.0,0.047771]
[1734546583306,0.0005,104680.0,104670.0,0.21733358]
[1734546584105,0.0005,104680.0,104670.0,0.90256847]
[1734546585990,0.0005,104680.0,104670.0,0.86552639]
[1734546586502,0.0005,104680.0,104670.0,1.22632639]
[1734546586703,0.0005,104680.0,104670.0,0.86552639]
[1734546586899,0.0005,104680.0,104670.0,1.22632639]
[1734546587107,0.02797375,104690.0,104680.0,0.047767]
[1734546587310,0.01869606,104690.0,104680.0,0.047767]
[1734546588205,0.01919606,104690.0,104680.0,0.047767]
[1734546589209,0.01869606,104690.0,104680.0,0.047767]
[1734546590109,0.01919606,104690.0,104680.0,0.047767]
[1734546592206,0.0005,104690.0,104680.0,0.1194875]
[1734546592402,0.0005,104690.0,104680.0,0.1753875]
[1734546592801,0.0005,104690.0,104680.0,0.2320875]
[1734546593712,0.0005,104690.0,104680.0,0.160367]
[1734546596115,0.3613,104690.0,104680.0,0.160367]
[1734546596314,0.0005,104690.0,104680.0,0.160367]
[1734546598015,0.0005,104690.0,104680.0,0.20740277]
[1734546599718,0.3613,104690.0,104680.0,0.20740277]
[1734546599912,0.50313354,104690.0,104680.0,0.047767]
[1734546600222,0.55993354,104690.0,104680.0,0.047767]
[1734546600514,0.51289777,104690.0,104680.0,0.047767]
[1734546601821,0.82632993,104690.0,104680.0,0.047767]
[1734546602122,0.85049383,104690.0,104680.0,0.047767]
[1734546603523,0.73103216,104690.0,104680.0,0.047767]
[1734546603721,0.73103216,104690.0,104680.0,0.11946667]
[1734546603923,0.73103216,104690.0,104680.0,0.047767]
[1734546605023,0.80273183,104690.0,104680.0,0.047767]
[1734546605325,0.48929967,104690.0,104680.0,0.047767]
[1734546606330,0.53706167,104690.0,104680.0,0.047767]
[1734546606519,0.68019743,104690.0,104680.0,0.047767]
[1734546607826,0.70735807,104690.0,104680.0,0.047767]
[1734546609428,0.6356584,104690.0,104680.0,0.047767]
[1734546609830,0.5878964,104690.0,104680.0,0.047767]
[1734546611325,0.73092366,104690.0,104680.0,0.047767]
[1734546611835,0.67412366,104690.0,104680.0,0.047767]
[1734546612724,0.50382726,104690.0,104680.0,0.27629712]
[1734546613133,0.14302726,104690.0,104680.0,0.70879679]
[1734546613332,2.6e-07,104690.0,104680.0,1.00879679]
[1734546613634,6.6e-07,104700.0,104690.0,0.047762]
[1734546613831,6.6e-07,104700.0,104690.0,0.64816167]
[1734546614127,1.06422802,104720.0,104690.0,0.94816167]
[1734546614328,1.06422802,104720.0,104710.0,0.047753]
[1734546614528,1.06422802,104720.0,104710.0,0.11945267]
[1734546614529,1.03493681,104720.0,104710.0,0.11945267]
[1734546615335,0.50553409,104720.0,104710.0,0.11945267]
[1734546616026,0.50553409,104720.0,104710.0,0.047753]
[1734546616729,0.047753,104710.0,104700.0,0.56194978]
[1734546617038,0.53675267,104710.0,104700.0,0.56194978]
[1734546617225,0.59795267,104710.0,104700.0,0.56194978]
[1734546617625,0.57315267,104710.0,104700.0,0.22853012]
[1734546617826,0.87315267,104710.0,104700.0,0.13843012]
[1734546618232,0.87265267,104710.0,104700.0,0.13843012]
[1734546618427,0.87265267,104710.0,104700.0,0.04833012]
[1734546619133,0.047757,104700.0,104690.0,0.04776]
[1734546619337,0.48025667,104700.0,104690.0,0.04776]
[1734546619731,0.047762,104690.0,104680.0,0.04919867]
[1734546619931,0.53896167,104690.0,104680.0,0.04919867]
[1734546620834,0.047767,104680.0,104670.0,0.048269]
[1734546621028,0.53836667,104680.0,104670.0,0.048269]
[1734546621225,0.53836667,104680.0,104670.0,0.047769]
[1734546622243,0.53836667,104680.0,104670.0,0.048269]
[1734546623145,0.53836667,104680.0,104670.0,0.047769]
[1734546624245,0.53836667,104680.0,104670.0,0.048269]
[1734546625148,0.53836667,104680.0,104670.0,0.047769]
[1734546626145,0.53836667,104680.0,104670.0,0.048269]
[1734546627038,0.53836667,104680.0,104670.0,0.0005]
[1734546627238,0.047771,104670.0,104660.0,0.047774]
[1734546627443,0.408571,104670.0,104660.0,0.047774]
[1734546628455,0.49420071,104670.0,104660.0,0.047774]
[1734546629160,0.49420071,104670.0,104660.0,0.048274]
[1734546630357,0.44642971,104670.0,104660.0,0.047774]
[1734546631157,0.44642971,104670.0,104660.0,0.048274]
[1734546632160,0.44642971,104670.0,104660.0,0.047774]
[1734546633160,0.44642971,104670.0,104660.0,0.048274]
[1734546634160,0.44642971,104670.0,104660.0,0.047774]
[1734546634356,0.44642971,104670.0,104660.0,0.11947367]
[1734546634761,0.08562971,104670.0,104660.0,0.41947367]
[1734546634947,0.08562971,104670.0,104660.0,0.11947367]
[1734546635152,0.08562971,104670.0,104660.0,0.11997367]
[1734546635353,0.08562971,104670.0,104660.0,0.048274]
[1734546635554,0.49420071,104670.0,104660.0,0.048274]
[1734546635753,0.56590038,104670.0,104660.0,0.048274]
[1734546636156,0.53507067,104670.0,104660.0,0.048274]
[1734546636961,0.463371,104670.0,104660.0,0.048274]
[1734546637164,0.4156,104670.0,104660.0,0.048274]
[1734546637461,0.44642971,104670.0,104660.0,0.048274]
[1734546637650,0.44642971,104670.0,104660.0,0.11997367]
[1734546638370,0.3608,104670.0,104660.0,0.11997367]
[1734546639260,0.44642971,104680.0,104670.0,0.047771]
[1734546639466,0.08562971,104680.0,104670.0,0.106771]
[1734546640270,0.08562971,104680.0,104670.0,0.17847067]
[1734546640464,0.08562971,104680.0,104670.0,0.23327067]
[1734546640967,0.53064588,104690.0,104670.0,0.23327067]
[1734546641274,0.53064588,104690.0,104680.0,0.047767]
[1734546642157,0.11424588,104690.0,104680.0,0.11946667]
[1734546642464,0.08562971,104690.0,104680.0,0.53746667]
[1734546643764,0.61743457,104710.0,104680.0,0.53746667]
[1734546643968,0.63641884,104710.0,104700.0,0.047757]
[1734546644565,0.68417184,104710.0,104700.0,0.047757]
[1734546645771,0.75587151,104710.0,104700.0,0.047757]
[1734546645960,0.76516296,104710.0,104700.0,0.047757]
[1734546646360,0.67953325,104710.0,104700.0,0.047757]
[1734546648567,0.67953325,104710.0,104690.0,0.27748433]
[1734546648568,0.75123292,104710.0,104690.0,0.17092233]
[1734546648768,0.61075634,104700.0,104690.0,0.17281589]
[1734546648968,0.61075634,104700.0,104690.0,0.12505389]
[1734546649176,0.61125634,104700.0,104690.0,0.12505389]
[1734546650072,0.78248131,104700.0,104680.0,0.047764]
[1734546650272,0.49129967,104690.0,104680.0,0.047764]
[1734546650864,0.53906167,104690.0,104680.0,0.047764]
[1734546651273,0.73888902,104690.0,104680.0,0.047764]
[1734546652269,0.66718935,104690.0,104680.0,0.047764]
[1734546652477,0.61942735,104690.0,104680.0,0.047764]
[1734546652664,0.47498706,104690.0,104680.0,0.047764]
[1734546653065,0.47498706,104690.0,104680.0,0.11946367]
[1734546653576,0.11418706,104690.0,104680.0,0.78026367]
[1734546653770,0.11418706,104690.0,104680.0,0.48026367]
[1734546655073,0.11418706,104690.0,104680.0,0.11946367]
[1734546655275,0.08562348,104700.0,104690.0,0.047762]
[1734546655474,0.08562348,104700.0,104690.0,0.167562]
[1734546655775,0.08562348,104700.0,104690.0,0.23926167]
[1734546655973,0.08562348,104700.0,104690.0,0.29486167]
[1734546656175,0.08562348,104700.0,104690.0,0.223162]
[1734546657577,0.69424961,104710.0,104700.0,0.047757]
[1734546657578,0.63713926,104710.0,104700.0,0.047757]
[1734546659372,0.57040199,104710.0,104700.0,0.047757]
[1734546660178,0.20960199,104710.0,104700.0,0.047757]
[1734546660874,0.57040199,104710.0,104700.0,0.047757]
[1734546661080,0.64210166,104710.0,104700.0,0.047757]
[1734546661276,0.5279146,104710.0,104700.0,0.047757]
[1734546662480,0.64210166,104710.0,104700.0,0.047757]
[1734546663368,0.57040199,104710.0,104700.0,0.047757]
[1734546665787,0.68985466,104710.0,104700.0,0.047757]
[1734546666078,0.57040199,104710.0,104700.0,0.047757]
[1734546668386,0.56990199,104710.0,104700.0,0.047757]
[1734546668889,0.48427851,104710.0,104700.0,0.047757]
[1734546671781,0.57000082,104710.0,104700.0,0.047757]
[1734546673386,0.20920082,104710.0,104700.0,0.48025667]
[1734546673585,0.3144588,104720.0,104700.0,0.61175634]
[1734546673780,0.3144588,104720.0,104710.0,0.53555267]
[1734546674294,0.3139588,104720.0,104710.0,0.53555267]
[1734546674592,0.3139588,104720.0,104710.0,0.463853]
[1734546674890,0.3608,104730.0,104710.0,0.463853]
[1734546674891,0.50353383,104730.0,104710.0,0.463853]
[1734546675189,0.50353383,104730.0,104720.0,0.047748]
[1734546675689,0.51328822,104730.0,104720.0,0.047748]
[1734546676392,0.39008527,104730.0,104720.0,0.047748]
[1734546677585,0.37055439,104730.0,104720.0,0.047748]
[1734546677783,0.37055439,104730.0,104720.0,0.11944767]
[1734546678789,0.00975439,104730.0,104720.0,0.11944767]
[1734546678984,0.50353383,104740.0,104720.0,0.54094767]
[1734546679188,0.50353383,104740.0,104730.0,0.23384367]
[1734546679391,0.51315191,104740.0,104730.0,0.23384367]
[1734546679589,0.51315191,104740.0,104730.0,0.162144]
[1734546680190,0.58485158,104740.0,104730.0,0.047744]
[1734546680384,0.74909058,104740.0,104730.0,0.047744]
[1734546680586,0.60635675,104740.0,104730.0,0.047744]
[1734546680786,0.48691808,104740.0,104730.0,0.047744]
[1734546685990,0.37041808,104740.0,104730.0,0.11944367]
[1734546686291,0.37091808,104740.0,104730.0,0.165344]
[1734546687186,0.37041808,104740.0,104730.0,0.165344]
[1734546688300,0.37091808,104740.0,104730.0,0.047744]
[1734546688502,0.48331808,104740.0,104730.0,0.047744]
[1734546689090,0.53105708,104740.0,104730.0,0.047744]
[1734546689293,0.48281808,104740.0,104730.0,0.047744]
[1734546690197,0.48331808,104740.0,104730.0,0.047744]
[1734546691201,0.48281808,104740.0,104730.0,0.11944367]
[1734546691405,0.3239588,104750.0,104730.0,0.55194334]
[1734546691702,0.3239588,104750.0,104740.0,0.59723867]
[1734546691902,0.3239588,104750.0,104740.0,0.65733867]
[1734546692214,0.1959138,104750.0,104740.0,0.65733867]
[1734546692406,8e-07,104750.0,104740.0,0.65733867]
[1734546693399,0.00965339,104760.0,104740.0,0.65733867]
[1734546693600,0.3708,104770.0,104750.0,0.3608]
[1734546693904,0.3708,104770.0,104760.0,0.04773]
[1734546694405,0.38035675,104770.0,104760.0,0.04773]
[1734546695906,0.39927267,104770.0,104760.0,0.04773]
[1734546699111,0.38035675,104770.0,104760.0,0.11942967]
[1734546699301,0.37035675,104770.0,104760.0,0.23432967]
[1734546700198,0.76343,104780.0,104760.0,0.23432967]
[1734546700405,0.76343,104780.0,104770.0,0.047725]
[1734546700599,0.78218553,104780.0,104770.0,0.047725]
[1734546701407,0.79212269,104780.0,104770.0,0.047725]
[1734546701605,0.37062269,104780.0,104770.0,0.11942467]
[1734546701906,0.29286716,104780.0,104770.0,0.11942467]
[1734546702296,0.139664,104780.0,104770.0,0.48022467]
[1734546702506,1e-06,104780.0,104770.0,0.48022467]
[1734546704006,1e-06,104780.0,104770.0,0.7080008]
[1734546704411,1e-06,104780.0,104770.0,0.6080008]
[1734546704612,1e-06,104780.0,104770.0,0.6557258]
[1734546705997,1e-06,104780.0,104770.0,1.0768258]
[1734546706205,0.00988253,104810.0,104800.0,0.047712]
[1734546706510,0.1278,104820.0,104810.0,0.047707]
[1734546707515,0.60800267,104820.0,104810.0,0.047707]
[1734546707812,0.04771,104810.0,104800.0,0.04771]
[1734546707999,0.54670967,104810.0,104800.0,0.04771]
[1734546708199,0.84670967,104810.0,104780.0,0.27549413]
[1734546708405,0.59591567,104800.0,104790.0,0.047716]
[1734546708605,0.95671567,104800.0,104790.0,0.047716]